bitfinex-derivatives/quotes_SOLF0:USTF0_20250901
["timestamp","ask_amount","ask_price","bid_price","bid_amount"]
[1756732343241,0.03344448,199.85,199.78,7.72]
[1756732343440,0.03344448,199.85,199.8,4.48092476]
[1756732343634,0.03344448,199.85,199.81,7.72]
[1756732343835,0.03344448,199.85,199.79,7.72]
[1756732344035,0.03344448,199.85,199.79,12.20092476]
[1756732345535,2.57344448,199.85,199.76,12.20092476]
[1756732346338,2.57344448,199.85,199.76,16.37828839]
[1756732346538,2.57344448,199.85,199.76,7.72]
[1756732346739,2.54,199.84,199.71,4.17736363]
[1756732347039,45.32,199.83,199.7,7.72]
[1756732347238,2.54,199.82,199.7,7.72]
[1756732347834,0.03293084,199.78,199.7,7.72]
[1756732348441,2.57293084,199.78,199.66,4.17736363]
[1756732348645,2.54,199.77,199.66,12.20092476]
[1756732349144,42.5,199.76,199.66,12.20092476]
[1756732349347,42.5,199.76,199.66,7.72]
[1756732349647,0.03275794,199.73,199.66,7.72]
[1756732352347,2.57275794,199.73,199.62,4.48092476]
[1756732352845,27.57275794,199.73,199.62,4.48092476]
[1756732353046,2.57275794,199.73,199.62,4.48092476]
[1756732353350,26.68,199.72,199.62,4.48092476]
[1756732354143,0.03256494,199.69,199.62,4.48092476]
[1756732354345,0.03256494,199.69,199.61,7.72]
[1756732354739,34.03256494,199.69,199.61,7.72]
[1756732354941,0.03256494,199.69,199.61,7.72]
[1756732357243,0.03256494,199.69,199.66,7.72]
[1756732357443,0.03256494,199.69,199.65,4.48092476]
[1756732357748,2.54,199.76,199.66,7.72]
[1756732358047,0.03577068,199.69,199.65,4.48092476]
[1756732358247,2.54,199.76,199.66,7.55]
[1756732358647,0.03178,199.69,199.65,4.48092476]
[1756732358845,366.21,199.88,199.56,4.48092476]
[1756732358846,2.59,199.82,199.69,7.58789615]
[1756732359040,0.52,199.81,199.72,7.55]
[1756732359246,45.75,199.82,199.72,7.55]
[1756732359446,83.56,199.81,199.72,7.55]
[1756732359648,2.59,199.82,199.72,7.55]
[1756732360046,2.59,199.82,199.75,0.03258603]
[1756732360450,2.59,199.87,199.75,7.58258603]
[1756732360645,43.32,199.86,199.75,7.58258603]
[1756732360942,2.59,199.85,199.75,7.55]
[1756732361248,2.59,199.85,199.79,0.03432786]
[1756732361451,127.24,199.84,199.79,0.03432786]
[1756732361648,129.83,199.84,199.79,0.03432786]
[1756732361848,127.24,199.84,199.79,0.03432786]
[1756732362145,2.59,199.83,199.79,0.03432786]
[1756732362343,127.24,199.84,199.79,0.03432786]
[1756732362743,2.59,199.83,199.79,0.03432786]
[1756732362940,129.83,199.83,199.79,0.03432786]
[1756732363144,2.59,199.82,199.79,0.03432786]
[1756732363345,127.24,199.83,199.79,0.03432786]
[1756732363550,2.59,199.82,199.79,0.03432786]
[1756732363943,2.59,199.86,199.79,0.03432786]
[1756732364450,2.59,199.84,199.79,0.03432786]
[1756732364650,127.16,199.85,199.79,0.03432786]
[1756732365050,2.59,199.84,199.79,0.03432786]
[1756732365352,127.16,199.85,199.79,0.03432786]
[1756732365652,2.59,199.84,199.79,0.03432786]
[1756732365846,4.48092476,199.87,199.79,0.03432786]
[1756732366047,127.16,199.83,199.79,0.03432786]
[1756732366346,2.59,199.82,199.79,0.03432786]
[1756732366551,127.16,199.83,199.79,0.03432786]
[1756732366755,2.59,199.82,199.79,0.03432786]
[1756732367553,127.16,199.83,199.79,0.03432786]
[1756732368247,2.59,199.82,199.79,0.03432786]
[1756732368642,2.59,199.87,199.79,0.03432786]
[1756732368845,127.06,199.86,199.79,0.03432786]
[1756732369156,336.2,199.88,199.8,7.55]
[1756732369354,127.04,199.87,199.8,7.55]
[1756732369755,127.02,199.86,199.8,7.55]
[1756732370255,127.02,199.86,199.79,0.03432786]
[1756732370451,2.59,199.85,199.79,0.03432786]
[1756732371950,127.04,199.84,199.79,0.03432786]
[1756732372150,129.59,199.83,199.79,0.03432786]
[1756732373256,2.59,199.82,199.79,0.03432786]
[1756732373456,127.0,199.83,199.79,0.03432786]
[1756732373658,2.59,199.82,199.79,0.03432786]
[1756732373956,127.0,199.83,199.79,7.58432786]
[1756732374155,127.0,199.83,199.79,0.03432786]
[1756732374358,129.59,199.83,199.79,0.03432786]
[1756732376956,127.0,199.83,199.79,0.03432786]
[1756732377550,126.7,199.82,199.79,0.03432786]
[1756732377958,2.59,199.81,199.79,0.03432786]
[1756732378356,126.7,199.82,199.79,0.03432786]
[1756732378861,2.59,199.81,199.79,0.03432786]
[1756732379262,126.7,199.82,199.79,0.03432786]
[1756732379756,2.59,199.81,199.79,0.03432786]
[1756732380063,126.66,199.8,199.79,0.03432786]
[1756732380363,126.62,199.8,199.79,0.03432786]
[1756732380862,126.7,199.8,199.79,0.03432786]
[1756732381664,129.29,199.8,199.79,0.03432786]
[1756732382964,2.59,199.87,199.79,0.03432786]
[1756732383163,2.59,199.85,199.79,0.03432786]
[1756732385162,126.54,199.84,199.79,0.03432786]
[1756732385458,2.59,199.83,199.79,0.03432786]
[1756732385664,338.79,199.88,199.8,7.55]
[1756732385962,336.2,199.88,199.8,12.03092476]
[1756732386163,126.56,199.87,199.8,12.03092476]
[1756732386963,126.56,199.87,199.8,4.48092476]
[1756732387155,126.56,199.87,199.81,7.55]
[1756732387361,336.2,199.88,199.81,7.55]
[1756732387558,126.52,199.89,199.84,7.55]
[1756732387761,126.52,199.89,199.83,4.48092476]
[1756732387962,126.52,199.89,199.84,7.46]
[1756732388363,126.52,199.89,199.85,7.46]
[1756732388863,126.52,199.89,199.84,0.03187425]
[1756732388864,2.59,199.88,199.84,0.03187425]
[1756732389560,126.52,199.89,199.84,0.03187425]
[1756732390363,2.59,199.88,199.84,0.03187425]
[1756732390759,126.52,199.89,199.84,0.03187425]
[1756732391171,2.59,199.88,199.84,0.03187425]
[1756732392259,126.52,199.89,199.84,0.03187425]
[1756732392960,2.59,199.88,199.84,0.03187425]
[1756732393167,126.52,199.89,199.84,0.03187425]
[1756732393363,2.59,199.88,199.84,0.03187425]
[1756732393668,126.52,199.89,199.84,0.03187425]
[1756732394465,2.59,199.88,199.84,0.03187425]
[1756732394967,126.52,199.89,199.84,0.03187425]
[1756732395165,2.59,199.93,199.84,0.03187425]
[1756732395362,2.59,199.87,199.84,0.03187425]
[1756732395766,126.3,199.88,199.84,0.03187425]
[1756732395968,2.59,199.87,199.84,0.03187425]
[1756732397071,0.5,199.87,199.72,4.17736363]
[1756732397269,2.56,199.84,199.71,11.94092476]
[1756732397668,4.48092476,199.85,199.71,7.46]
[1756732397971,2.56,199.8,199.67,7.46]
[1756732398274,2.56,199.78,199.67,7.46]
[1756732399073,0.03506414,199.74,199.67,7.46]
[1756732399573,0.03506414,199.74,199.68,7.46]
[1756732400473,0.03506414,199.74,199.68,11.63736363]
[1756732400770,0.03506414,199.74,199.68,7.46]
[1756732401163,0.03506414,199.74,199.65,11.63736363]
[1756732401367,0.03506414,199.74,199.65,7.46]
[1756732402069,0.03506414,199.74,199.65,11.63736363]
[1756732402268,0.03506414,199.74,199.66,7.46]
[1756732402872,0.03506414,199.74,199.67,4.17736363]
[1756732403070,0.03506414,199.74,199.66,7.46]
[1756732407672,69.14,199.73,199.66,7.46]
[1756732408878,0.03506414,199.74,199.66,7.46]
[1756732409075,37.55506414,199.74,199.66,7.46]
[1756732409277,0.03506414,199.74,199.66,7.46]
[1756732410076,0.03506414,199.74,199.66,2.80915285]
[1756732410282,0.03506414,199.74,199.67,7.46]
[1756732410583,0.03506414,199.74,199.69,2.80915285]
[1756732410774,0.03506414,199.74,199.7,7.46]
[1756732410970,2.56,199.73,199.66,10.26915285]
[1756732411182,2.56,199.73,199.66,7.46]
[1756732413687,0.03506414,199.74,199.68,7.46]
[1756732414073,21.6,199.77,199.68,7.46]
[1756732414482,0.03202482,199.73,199.68,7.46]
[1756732414782,0.03202482,199.73,199.67,2.80915285]
[1756732416186,0.03202482,199.73,199.68,7.46]
[1756732416982,0.03202482,199.73,199.67,10.26915285]
[1756732417286,0.03202482,199.73,199.67,7.46]
[1756732422180,0.03202482,199.73,199.68,2.80915285]
[1756732422578,0.03202482,199.73,199.6,2.80915285]
[1756732422579,0.03202482,199.73,199.72,7.74]
[1756732422785,2.57,199.83,199.72,7.74]
[1756732422985,128.57,199.83,199.75,7.74]
[1756732424082,128.57,199.83,199.77,0.03304638]
[1756732424578,128.57,199.83,199.71,10.54915285]
[1756732424780,337.25132878,199.86,199.78,7.77662391]
[1756732424987,463.27132878,199.86,199.78,7.77662391]
[1756732425388,2.6,199.85,199.78,7.77662391]
[1756732425584,2.6,199.85,199.78,0.03662391]
[1756732425885,5.40915285,199.85,199.78,0.03662391]
[1756732426787,126.46,199.84,199.78,0.03662391]
[1756732427588,126.44,199.83,199.78,0.03662391]
[1756732427988,2.6,199.82,199.78,0.03662391]
[1756732428587,126.44,199.83,199.78,0.03662391]
[1756732428887,2.6,199.82,199.78,0.03662391]
[1756732429087,126.44,199.83,199.78,0.03662391]
[1756732429689,2.6,199.82,199.78,0.03662391]
[1756732430090,126.44,199.83,199.78,0.03662391]
[1756732430286,2.80915285,199.85,199.78,0.03662391]
[1756732430287,2.6,199.84,199.78,0.03662391]
[1756732430490,126.26,199.83,199.78,7.77662391]
[1756732430692,128.86,199.83,199.78,7.77662391]
[1756732431190,2.6,199.82,199.78,0.03662391]
[1756732432089,126.26,199.83,199.78,0.03662391]
[1756732432289,2.6,199.82,199.78,0.03662391]
[1756732432584,126.28,199.81,199.78,0.03662391]
[1756732432786,126.28,199.81,199.79,7.74]
[1756732433489,126.28,199.81,199.78,0.03662391]
[1756732433982,126.28,199.81,199.79,7.74]
[1756732434183,126.28,199.81,199.78,0.03662391]
[1756732434384,126.28,199.81,199.79,7.74]
[1756732434790,126.28,199.81,199.78,0.03662391]
[1756732435693,126.28,199.81,199.79,7.74]
[1756732438290,338.98,199.86,199.78,0.03662391]
[1756732438493,338.98,199.86,199.79,7.74]
[1756732438494,126.1,199.85,199.79,7.74]
[1756732439796,126.1,199.85,199.78,0.03662391]
[1756732439994,336.38,199.86,199.78,0.03662391]
[1756732440192,2.58,199.9,199.83,2.80915285]
[1756732440393,126.06,199.89,199.84,7.74]
[1756732440598,126.36,199.9,199.84,7.74]
[1756732440798,126.36,199.9,199.85,4.76215336]
[1756732440998,2.58,199.89,199.86,4.76215336]
[1756732441205,2.58,199.89,199.87,4.76215336]
[1756732441408,2.58,199.89,199.88,4.76215336]
[1756732441804,2.58,199.89,199.85,0.03241382]
[1756732442006,2.58,199.89,199.86,4.76042826]
[1756732442201,2.58,199.89,199.87,4.76042826]
[1756732442405,2.58,199.89,199.88,4.76042826]
[1756732446105,5.88915285,199.89,199.88,4.76042826]
[1756732450313,5.88915285,199.89,199.85,0.03241382]
[1756732450514,2.80915285,199.86,199.85,0.03241382]
[1756732453519,2.80915285,199.87,199.85,0.03241382]
[1756732454321,125.88,199.86,199.85,0.03241382]
[1756732454520,125.82,199.86,199.85,0.03241382]
[1756732454722,2.80915285,199.87,199.85,0.03241382]
[1756732454915,125.82,199.86,199.85,0.03241382]
[1756732455220,2.80915285,199.9,199.85,0.03241382]
[1756732455516,125.78,199.89,199.85,0.03241382]
[1756732456218,2.80915285,199.9,199.85,0.03241382]
[1756732456420,125.84,199.89,199.85,0.03241382]
[1756732460925,125.74,199.88,199.85,0.03241382]
[1756732462229,2.80915285,199.87,199.86,4.67580237]
[1756732462927,2.80915285,199.87,199.85,0.03241382]
[1756732463127,2.80915285,199.87,199.86,4.67580382]
[1756732463329,125.74,199.87,199.86,4.67580382]
[1756732464827,2.80915285,199.9,199.86,4.67580382]
[1756732465028,125.74,199.89,199.87,4.67580382]
[1756732465237,125.74,199.89,199.88,4.67580382]
[1756732466333,2.80915285,199.9,199.88,4.67580382]
[1756732466531,125.74,199.89,199.85,0.03241382]
[1756732466732,125.74,199.89,199.86,4.68246988]
[1756732466931,125.74,199.89,199.87,4.68246988]
[1756732467232,2.80915285,199.9,199.88,4.68246988]
[1756732467431,2.80915285,199.9,199.89,4.68246988]
[1756732467634,128.54915285,199.9,199.89,4.68246988]
[1756732468433,2.80915285,199.9,199.89,4.68246988]
[1756732468634,336.38,199.92,199.89,4.68246988]
[1756732468935,125.74,199.91,199.9,4.68246988]
[1756732470032,125.74,199.91,199.9,4.77079985]
[1756732471937,336.38,199.92,199.91,7.8]
[1756732472130,336.38,199.92,199.91,12.57079985]
[1756732472131,462.1,199.92,199.91,12.57079985]
[1756732473434,462.1,199.92,199.91,12.51600398]
[1756732474034,462.1,199.92,199.91,7.8]
[1756732474333,462.1,199.92,199.91,12.51600398]
[1756732475335,336.38,199.92,199.91,12.51600398]
[1756732475834,125.72,199.92,199.91,12.51600398]
[1756732476035,2.80915285,200.01,199.91,12.51600398]
[1756732476237,125.7,200.0,199.92,4.71600398]
[1756732476432,125.7,200.0,199.93,4.71600398]
[1756732476628,125.7,200.0,199.94,4.71600398]
[1756732476831,125.7,200.0,199.95,4.71600398]
[1756732477036,125.7,200.0,199.96,4.71600398]
[1756732477339,125.7,200.0,199.97,4.71600398]
[1756732477632,125.7,200.0,199.98,4.71600398]
[1756732477834,125.7,200.0,199.99,4.71600398]
[1756732480430,2.80915285,200.01,199.99,4.71600398]
[1756732480637,125.68,200.0,199.94,0.03621468]
[1756732480936,125.68,200.0,199.95,4.70643609]
[1756732481237,2.80915285,199.98,199.96,4.70643609]
[1756732481438,125.68,199.97,199.94,0.03621468]
[1756732481634,125.68,199.97,199.95,4.70609969]
[1756732481934,125.68,199.97,199.96,4.70609969]
[1756732482139,125.68,199.97,199.94,0.03621468]
[1756732482433,125.68,199.97,199.95,4.70625353]
[1756732482637,125.68,199.97,199.96,4.70625353]
[1756732483943,125.68,199.97,199.94,0.03621468]
[1756732484133,125.68,199.97,199.95,4.70605176]
[1756732484333,125.68,199.97,199.96,4.70605176]
[1756732490043,2.80915285,199.98,199.96,4.70605176]
[1756732490243,0.87057676,200.02,199.97,4.70522123]
[1756732490445,0.87057676,200.02,199.94,0.03621468]
[1756732490446,3.67972961,200.02,199.98,4.70521833]
[1756732490646,125.64,200.01,199.95,7.69]
[1756732490841,125.64,200.01,199.97,7.69]
[1756732491045,125.64,200.01,199.98,4.70493898]
[1756732491248,125.64,200.01,199.99,4.70493898]
[1756732491446,125.64,200.01,199.97,7.69]
[1756732491641,125.64,200.01,199.98,4.70419348]
[1756732491841,125.64,200.01,199.99,4.70419348]
[1756732492147,125.64,200.01,199.97,7.69]
[1756732492347,125.64,200.01,199.98,4.7035147]
[1756732492546,125.64,200.01,199.99,4.7035147]
[1756732492745,125.64,200.01,199.97,7.69]
[1756732492944,125.64,200.01,199.98,4.7035147]
[1756732493138,125.64,200.01,199.99,4.7035147]
[1756732493342,125.64,200.01,200.0,4.7035147]
[1756732493942,0.87057676,200.02,200.0,12.3935147]
[1756732494244,0.87057676,200.02,200.01,4.7035147]
[1756732494451,125.62,200.02,200.01,12.39180363]
[1756732495551,125.62,200.02,200.01,4.70014829]
[1756732498157,125.62,200.02,200.01,4.69894105]
[1756732501056,336.34,200.04,200.01,12.38894105]
[1756732501254,125.58,200.03,200.02,4.69894105]
[1756732501566,128.38915285,200.03,200.02,4.69894105]
[1756732502956,128.38915285,200.03,199.98,0.03580667]
[1756732503155,2.80915285,200.0,199.99,4.69979143]
[1756732503357,128.36915285,200.0,199.99,4.69979143]
[1756732503858,128.36915285,200.0,199.99,4.70058739]
[1756732504059,128.36915285,200.0,199.98,0.03580667]
[1756732504259,128.36915285,200.0,199.91,7.69]
[1756732504563,2.80915285,199.96,199.92,4.70196111]
[1756732504865,2.80915285,199.93,199.81,2.80915285]
[1756732505063,125.56,199.92,199.82,12.39234854]
[1756732505255,125.56,199.92,199.83,4.70234854]
[1756732505453,125.56,199.92,199.84,4.70234854]
[1756732505454,2.80915285,199.9,199.84,4.70234854]
[1756732505653,125.59534838,199.89,199.85,4.70234854]
[1756732505850,125.59534838,199.89,199.86,4.70234854]
[1756732506052,125.59534838,199.89,199.87,4.70234854]
[1756732506255,125.59534838,199.89,199.88,4.70234854]
[1756732507456,125.59534838,199.89,199.77,7.69]
[1756732507658,2.80915285,199.86,199.77,7.69]
[1756732507859,121.98,199.85,199.77,7.69]
[1756732508160,0.03356634,199.83,199.77,7.69]
[1756732509061,2.84271919,199.83,199.77,7.69]
[1756732511759,0.03356634,199.83,199.77,7.69]
[1756732512062,31.85356634,199.83,199.78,8.07]
[1756732512252,31.85356634,199.83,199.77,2.80915285]
[1756732512451,31.85356634,199.83,199.76,2.80915285]
[1756732512656,31.85356634,199.83,199.77,8.07]
[1756732513050,0.03356634,199.83,199.77,8.07]
[1756732513256,31.81356634,199.83,199.77,8.07]
[1756732513651,31.81356634,199.83,199.77,10.87915285]
[1756732513856,31.81356634,199.83,199.77,8.07]
[1756732515561,2.80915285,199.82,199.77,8.07]
[1756732515860,2.80915285,199.82,199.73,8.07]
[1756732516056,62.18,199.81,199.73,8.07]
[1756732516461,0.03700938,199.79,199.73,8.07]
[1756732519564,0.03700938,199.79,199.74,4.54091406]
[1756732519764,0.03700938,199.79,199.73,8.07]
[1756732520154,0.03700938,199.79,199.72,8.07]
[1756732520363,31.93700938,199.79,199.72,8.07]
[1756732520564,31.9,199.79,199.72,8.07]
[1756732520959,0.03773349,199.77,199.72,8.07]
[1756732522168,0.03773349,199.77,199.71,2.80915285]
[1756732522562,0.03773349,199.77,199.72,8.07]
[1756732523169,0.03773349,199.77,199.71,2.80915285]
[1756732523365,0.03773349,199.77,199.72,8.07]
[1756732523766,29.4,199.82,199.75,8.07]
[1756732524166,0.05,199.86,199.75,8.07]
[1756732524366,31.58,199.85,199.75,8.07]
[1756732524766,0.05,199.86,199.75,8.07]
[1756732524968,31.58,199.85,199.78,8.07]
[1756732525171,31.58,199.85,199.78,8.1058869]
[1756732525871,0.05,199.99,199.82,8.07]
[1756732526071,2.85915285,199.95,199.82,8.07]
[1756732526273,2.85915285,199.95,199.85,8.07]
[1756732526569,2.85915285,199.95,199.87,0.03420332]
[1756732527267,0.05,199.95,199.87,0.03420332]
[1756732529465,2.80915285,199.93,199.87,0.03420332]
[1756732529665,125.58,199.98,199.87,0.03420332]
[1756732529872,2.80915285,199.93,199.87,0.03420332]
[1756732530465,0.05,199.92,199.87,0.03420332]
[1756732530662,125.56,199.91,199.87,0.03420332]
[1756732530970,0.05,199.9,199.87,0.03420332]
[1756732531166,125.56,199.91,199.87,0.03420332]
[1756732531472,0.05,199.89,199.87,0.03420332]
[1756732531866,2.80915285,199.9,199.87,0.03420332]
[1756732532074,0.05,199.89,199.87,0.03420332]
[1756732532762,2.80915285,199.9,199.87,0.03420332]
[1756732532967,125.61,199.91,199.87,8.10420332]
[1756732533369,125.56,199.91,199.87,8.10420332]
[1756732533565,0.05,199.94,199.87,8.10420332]
[1756732533973,125.54,199.93,199.87,8.10420332]
[1756732534372,125.54,199.93,199.87,8.07]
[1756732534668,125.54,199.93,199.88,0.03590444]
[1756732534879,2.80915285,199.97,199.89,8.07]
[1756732535079,0.05,199.98,199.89,8.07]
[1756732535272,2.80915285,200.0,199.91,8.07]
[1756732535474,125.54,199.99,199.91,8.07]
[1756732535875,125.54,200.0,199.91,8.07]
[1756732536074,125.54,200.0,199.94,8.07]
[1756732537074,336.42,200.01,199.94,10.87915285]
[1756732537978,336.42,200.01,199.94,8.07]
[1756732538176,0.05,200.0,199.94,8.07]
[1756732539277,336.42,200.01,199.95,8.19]
[1756732545381,125.46,200.01,199.95,8.19]
[1756732546277,0.05,200.05,199.95,8.19]
[1756732546477,0.05,200.05,199.98,8.19]
[1756732546683,125.44,200.04,199.98,8.19]
[1756732546877,125.44,200.04,199.99,0.03706628]
[1756732547281,125.44,200.04,200.0,8.19]
[1756732548282,125.49,200.04,200.0,8.19]
[1756732548476,0.05,200.03,199.99,0.03706628]
[1756732548681,0.05,200.03,199.99,8.22706628]
[1756732548983,125.44,200.04,199.99,8.22706628]
[1756732549279,125.44,200.04,199.99,0.03706628]
[1756732549476,125.44,200.04,200.0,8.19]
[1756732549872,125.42,200.05,200.0,8.19]
[1756732550080,125.42,200.05,199.99,8.22706628]
[1756732550282,0.87030461,200.09,200.0,2.80915285]
[1756732550579,125.42,200.08,200.0,2.80915285]
[1756732552686,125.47,200.08,199.99,11.03621913]
[1756732552983,125.47,200.08,200.0,2.80915285]
[1756732558398,0.05,200.08,200.0,2.80915285]
[1756732559100,0.05,200.08,200.01,8.19]
[1756732559495,0.04,200.07,199.99,0.03706628]
[1756732561398,0.04,200.07,199.99,2.84621913]
[1756732561798,0.04,200.07,200.0,8.19]
[1756732561998,0.04,200.07,200.03,8.19]
[1756732562795,0.04,200.07,200.02,2.80915285]
[1756732563102,125.34,200.08,200.02,2.80915285]
[1756732563304,0.04,200.07,199.99,11.03621913]
[1756732569212,0.04,200.07,199.99,8.22706628]
[1756732572416,2.84915285,200.07,199.99,0.03706628]
[1756732574711,31.26,200.06,199.99,0.03706628]
[1756732575113,0.04,200.05,199.99,0.03706628]
[1756732576317,0.04,200.03,199.99,0.03706628]
[1756732576917,0.04,200.03,199.92,2.80915285]
[1756732577110,0.04,200.03,199.99,0.03613158]
[1756732577809,34.02915285,200.04,199.99,0.03613158]
[1756732578714,0.04,200.03,199.99,0.03613158]
[1756732579217,2.80915285,200.01,199.91,7.76]
[1756732580716,0.03697644,199.98,199.91,7.76]
[1756732581016,12.55697644,199.98,199.91,7.76]
[1756732581208,0.03697644,199.98,199.91,7.76]
[1756732581606,6.25697644,199.98,199.91,7.76]
[1756732582513,9.06612929,199.98,199.91,7.76]
[1756732583018,9.06612929,199.98,199.88,10.56915285]
[1756732583914,9.06612929,199.98,199.88,7.76]
[1756732586625,10.3,199.97,199.88,7.76]
[1756732587424,2.80915285,199.95,199.88,7.76]
[1756732588122,0.03245116,199.93,199.88,7.76]
[1756732588712,0.03245116,199.93,199.83,7.76]
[1756732588916,2.80915285,199.92,199.83,7.76]
[1756732589719,2.80915285,199.89,199.83,7.76]
[1756732589921,35.90915285,199.89,199.83,7.76]
[1756732590623,0.03274491,199.88,199.79,7.76]
[1756732593323,63.21274491,199.88,199.79,7.76]
[1756732594326,0.03274491,199.88,199.79,7.76]
[1756732597128,2.80915285,199.87,199.79,7.76]
[1756732597723,0.02,199.86,199.76,116.99989427]
[1756732597924,0.02,199.83,199.76,7.76]
[1756732598431,0.03238399,199.81,199.73,8.11]
[1756732604231,0.02,199.8,199.73,8.11]
[1756732605330,2.80915285,199.79,199.73,8.11]
[1756732605732,0.02,199.78,199.68,8.11]
[1756732606434,0.0368561,199.75,199.68,8.11]
[1756732607528,0.0368561,199.75,199.71,8.11]
[1756732607828,27.4,199.81,199.74,8.11]
[1756732608028,339.18915285,199.85,199.74,8.11]
[1756732608029,125.26,199.83,199.74,8.11]
[1756732608428,0.06,199.81,199.74,8.11]
[1756732608731,0.06,199.78,199.7,8.11]
[1756732609131,0.06,199.78,199.76,0.03588328]
[1756732609332,2.80915285,199.79,199.7,8.11]
[1756732609533,0.06,199.78,199.7,8.11]
[1756732609832,0.06,199.78,199.75,0.03740658]
[1756732610235,0.06,199.82,199.75,0.03740658]
[1756732610436,2.86915285,199.78,199.75,0.03740658]
[1756732610638,0.06,199.77,199.75,0.03740658]
[1756732612838,336.38,199.85,199.75,0.03740658]
[1756732612839,0.06,199.84,199.75,0.03740658]
[1756732613040,0.06,199.78,199.75,0.03740658]
[1756732614337,2.80915285,199.79,199.75,0.03740658]
[1756732614532,0.06,199.78,199.75,0.03740658]
[1756732614737,0.06,199.78,199.75,8.14740658]
[1756732615439,125.24,199.77,199.76,8.11]
[1756732615744,125.24,199.77,199.75,0.03740658]
[1756732615943,125.24,199.77,199.75,8.14740658]
[1756732616745,125.24,199.77,199.75,0.03740658]
[1756732617046,125.3,199.77,199.75,0.03740658]
[1756732617637,125.24,199.77,199.75,8.14740658]
[1756732619751,2.80915285,199.79,199.75,0.03740658]
[1756732620049,125.22,199.77,199.76,8.11]
[1756732620248,0.06,199.84,199.76,8.11]
[1756732620445,128.02915285,199.83,199.76,8.11]
[1756732620843,2.80915285,199.83,199.76,8.11]
[1756732621050,125.22,199.82,199.76,8.11]
[1756732621246,125.22,199.82,199.75,0.03740658]
[1756732621247,0.06,199.81,199.75,0.03740658]
[1756732621452,2.80915285,199.8,199.75,0.03740658]
[1756732621750,0.06,199.79,199.75,0.03740658]
[1756732622252,2.80915285,199.8,199.76,8.11]
[1756732622552,125.22,199.79,199.76,8.11]
[1756732622948,125.28,199.79,199.75,8.14740658]
[1756732623550,0.06,199.78,199.75,8.14740658]
[1756732623748,0.06,199.78,199.75,0.03740658]
[1756732623951,125.22,199.79,199.75,0.03740658]
[1756732624355,0.06,199.78,199.75,0.03740658]
[1756732624956,125.2,199.77,199.76,8.11]
[1756732625548,2.86915285,199.8,199.75,0.03740658]
[1756732625748,2.80915285,199.83,199.76,8.11]
[1756732625955,2.80915285,199.83,199.75,0.03740658]
[1756732626155,125.2,199.82,199.76,8.11]
[1756732627457,2.80915285,199.83,199.76,8.11]
[1756732627654,125.2,199.82,199.76,8.11]
[1756732628257,125.25,199.82,199.76,8.11]
[1756732628759,125.2,199.82,199.76,8.11]
[1756732628955,336.43,199.85,199.76,8.11]
[1756732629159,128.00915285,199.84,199.76,8.11]
[1756732632256,0.05,199.83,199.76,8.11]
[1756732633459,0.05,199.83,199.75,0.03740658]
[1756732633460,0.05,199.77,199.75,0.03740658]
[1756732633662,0.05,199.75,199.67,8.03]
[1756732633863,125.16,199.76,199.63,12.22522134]
[1756732633864,0.05,199.72,199.63,12.22522134]
[1756732634056,125.16,199.71,199.63,8.03]
[1756732634963,0.03778187,199.69,199.63,8.03]
[1756732636060,0.08778187,199.69,199.63,8.03]
[1756732637263,4.14,199.68,199.6,8.03]
[1756732640063,8.04,199.68,199.6,12.22522134]